bitfinex/quotes_SOLUSD_20251218
["timestamp","ask_amount","ask_price","bid_price","bid_amount"]
[1766045296237,13.39362317,123.08,123.06,0.72]
[1766045296238,8.92,123.08,123.06,0.72]
[1766045296529,10.43767296,123.09,123.06,0.72]
[1766045297134,11.09767296,123.09,123.06,0.72]
[1766045298307,10.43767296,123.09,123.07,0.72]
[1766045301332,10.43767296,123.09,123.07,8.84492872]
[1766045301517,10.43767296,123.09,123.08,0.72]
[1766045301716,4.47362317,123.11,123.08,0.72]
[1766045301924,0.66,123.11,123.08,0.72]
[1766045302132,3.81362318,123.12,123.08,0.72]
[1766045302433,0.66,123.11,123.08,0.72]
[1766045302931,1e-08,123.12,123.08,0.72]
[1766045303134,0.66000001,123.12,123.08,0.72]
[1766045303337,4.47362318,123.12,123.08,0.72]
[1766045303528,0.66,123.11,123.08,0.72]
[1766045307123,0.66,123.1,123.07,8.12492197]
[1766045307424,0.66,123.1,123.07,8.84492197]
[1766045307623,0.66,123.1,123.08,0.72]
[1766045307831,4.47362317,123.11,123.08,0.72]
[1766045308345,0.66,123.11,123.08,0.72]
[1766045308635,4.47362318,123.12,123.08,0.72]
[1766045309242,3.81362318,123.12,123.08,0.72]
[1766045309413,0.66,123.11,123.08,0.72]
[1766045309820,4.47362317,123.11,123.08,0.72]
[1766045310131,4.47362317,123.09,123.06,0.72]
[1766045310334,0.66,123.09,123.06,0.72]
[1766045310540,4.47362317,123.09,123.06,0.72]
[1766045313046,0.66,123.09,123.06,0.72]
[1766045313239,4.47362317,123.09,123.06,0.72]
[1766045313543,0.66,123.09,123.06,0.72]
[1766045314742,0.66,123.08,123.05,8.84639685]
[1766045315046,0.66,123.08,123.03,3.81362317]
[1766045315047,4.47362317,123.06,123.03,9.52994492]
[1766045315632,4.47362317,123.06,123.03,17.6576792]
[1766045315844,0.66,123.06,123.03,17.6576792]
[1766045316348,0.66,123.06,123.04,0.72]
[1766045317119,0.66,123.05,123.02,17.04842701]
[1766045317626,4.47362317,123.06,123.03,0.72]
[1766045318143,0.66,123.06,123.03,8.84803419]
[1766045319045,4.47199829,123.07,123.04,0.72]
[1766045319246,0.66,123.08,123.04,0.72]
[1766045319478,0.66,123.07,123.04,0.72]
[1766045319659,3.81199829,123.08,123.04,0.72]
[1766045319830,4.47199829,123.08,123.04,0.72]
[1766045320344,0.66,123.07,123.04,0.72]
[1766045321246,0.66,123.07,123.02,17.04844331]
[1766045321453,0.66,123.05,123.02,17.76844331]
[1766045323742,3.81199829,123.06,123.02,17.04844331]
[1766045323946,4.48199829,123.06,123.03,0.71]
[1766045324251,4.48199829,123.06,123.03,8.83809753]
[1766045324633,0.67,123.05,123.02,8.8384623]
[1766045324955,4.48199829,123.04,123.01,9.63]
[1766045325130,4.48199829,123.04,123.01,0.71]
[1766045326357,0.67,123.03,123.01,8.12938963]
[1766045326657,3.81199829,123.04,123.01,8.83938963]
[1766045326965,4.48199829,123.04,123.01,8.83938963]
[1766045328747,4.48199829,123.04,123.01,0.71]
[1766045329038,0.67,123.03,123.0,17.64971933]
[1766045329465,3.81199829,123.04,123.01,8.12939128]
[1766045329657,4.48199829,123.04,123.01,8.83939128]
[1766045330454,0.67,123.03,123.01,8.12939128]
[1766045330659,4.48199829,123.03,123.0,17.64969239]
[1766045331261,4.48199829,123.03,123.01,0.71]
[1766045332052,4.48199829,123.03,123.0,17.64969239]
[1766045332359,3.81199829,123.03,123.01,0.71]
[1766045333065,4.48199829,123.03,123.01,0.71]
[1766045333241,3.81199829,123.03,123.0,16.93969239]
[1766045333560,0.67,123.01,122.99,8.84064538]
[1766045333861,3.1117413,123.02,122.99,8.84064538]
[1766045334048,10.43767296,123.06,123.0,0.71]
[1766045334253,3.1117413,123.04,123.0,8.83975452]
[1766045334551,0.67,123.03,123.0,8.83975452]
[1766045334861,0.67,123.03,123.01,0.71]
[1766045335061,0.67,123.03,122.99,28.45671722]
[1766045335237,0.67,123.03,123.0,0.71]
[1766045335561,3.1117413,123.04,123.0,0.71]
[1766045336863,0.67,123.03,123.0,0.71]
[1766045337163,0.67,123.03,123.0,8.84002465]
[1766045338735,0.67,123.03,122.99,28.45671722]
[1766045339062,0.67,123.03,123.0,0.71]
[1766045339764,2.4417413,123.04,123.0,0.71]
[1766045339945,0.67,123.03,123.0,0.71]
[1766045340138,10.56797799,123.06,123.0,0.71]
[1766045340462,0.67,123.05,123.02,0.71]
[1766045341460,0.67,123.05,123.02,8.8386847]
[1766045342465,2.4417413,123.06,123.01,16.93936529]
[1766045342642,3.1117413,123.06,123.02,0.71]
[1766045342960,2.4417413,123.06,123.02,0.71]
[1766045343272,0.67,123.05,123.02,0.71]
[1766045344668,0.67,123.05,123.02,8.83869826]
[1766045345761,3.1117413,123.05,123.02,8.83869826]
[1766045345969,0.67,123.03,123.0,17.75977022]
[1766045346143,0.67,123.03,123.0,8.92]
[1766045346450,3.1117413,123.04,123.01,0.71]
[1766045346653,0.67,123.04,123.01,0.71]
[1766045347265,0.67,123.04,123.01,8.12938018]
[1766045347564,3.1117413,123.04,123.01,8.12938018]
[1766045347764,3.1117413,123.04,123.02,0.71]
[1766045349972,3.1117413,123.04,123.01,8.12938018]
[1766045350175,3.1117413,123.04,123.01,8.83938018]
[1766045350879,0.67,123.05,123.02,0.71]
[1766045351169,3.1117413,123.05,123.02,0.71]
[1766045351666,3.1017413,123.06,123.02,0.71]
[1766045352051,2.4417413,123.06,123.02,0.71]
[1766045352268,0.68,123.05,123.02,0.71]
[1766045352670,0.68,123.05,123.02,8.8385234]
[1766045352870,3.1217413,123.05,123.02,8.8385234]
[1766045354879,3.1217413,123.05,123.02,8.1285234]
[1766045355058,3.1217413,123.05,123.02,8.7885234]
[1766045357482,3.1217413,123.08,123.04,0.66]
[1766045357776,0.68,123.08,123.04,0.66]
[1766045358161,0.68,123.07,123.04,0.66]
[1766045358360,2.4417413,123.08,123.03,8.92]
[1766045358361,2.4417413,123.06,123.03,9.58]
[1766045358560,3.1217413,123.05,123.03,8.92]
[1766045358755,3.1217413,123.05,123.02,9.46994492]
[1766045358975,0.68,123.04,123.01,28.14709333]
[1766045359580,0.68,123.04,123.02,0.66]
[1766045359766,3.1217413,123.05,123.02,0.66]
[1766045359951,3.1217413,123.06,123.02,0.66]
[1766045360266,2.4417413,123.06,123.02,0.66]
[1766045360468,0.68,123.05,123.02,0.66]
[1766045360679,0.68,123.05,123.02,8.78865121]
[1766045360856,0.68,123.05,123.03,0.66]
[1766045361058,0.68,123.06,123.03,0.66]
[1766045361268,3.1217413,123.06,123.03,0.66]
[1766045364678,0.68,123.06,123.03,0.66]
[1766045364884,3.1217413,123.06,123.03,0.66]
[1766045365885,3.1217413,123.05,123.02,0.66]
[1766045367190,2.4417413,123.05,123.02,0.66]
[1766045367581,11.24788829,123.06,123.02,0.66]
[1766045367780,0.68,123.05,123.02,0.66]
[1766045368395,2.4417413,123.03,122.99,0.66]
[1766045368590,3.1217413,123.02,123.0,0.66]
[1766045368993,2.4417413,123.02,123.0,0.66]
[1766045369284,3.1217413,123.02,122.99,0.66]
[1766045370070,2.4417413,123.0,122.96,0.66]
[1766045370274,2.4417413,123.0,122.97,0.66]
[1766045371195,2.4417413,123.0,122.98,0.66]
[1766045371497,3.1217413,123.01,122.98,0.66]
[1766045372098,3.1217413,122.99,122.96,0.66]
[1766045373589,0.68,122.99,122.96,0.66]
[1766045373875,3.1217413,122.99,122.96,0.66]
[1766045375696,2.4417413,122.98,122.96,0.66]
[1766045376806,2.4417413,122.99,122.96,0.66]
[1766045377996,3.1217413,122.99,122.96,0.66]
[1766045378806,0.68,122.99,122.96,0.66]
[1766045379105,2.4417413,122.99,122.95,8.13333839]
[1766045379323,3.1217413,122.97,122.94,8.79374717]
[1766045379605,2.4417413,122.97,122.95,0.66]
[1766045380083,0.68,122.98,122.95,0.66]
[1766045380405,3.1217413,122.98,122.95,0.66]
[1766045381785,8.13022656,123.0,122.93,8.33450183]
[1766045381786,3.1217413,122.96,122.93,8.33450183]
[1766045383807,2.4417413,122.96,122.94,0.69]
[1766045384488,3.1317413,122.97,122.94,0.69]
[1766045385809,2.4417413,122.96,122.94,0.69]
[1766045386009,2.44370563,122.96,122.94,0.69]
[1766045387308,3.13370563,122.96,122.93,9.02450183]
[1766045387511,3.13370563,122.96,122.94,0.69]
[1766045388208,2.44370563,122.96,122.94,0.69]
[1766045388388,3.13370563,122.96,122.93,9.02450183]
[1766045390400,2.44370563,122.96,122.94,0.69]
[1766045392204,3.13370563,122.96,122.94,0.69]
[1766045392508,3.13370563,122.96,122.93,8.33450183]
[1766045392710,3.13370563,122.96,122.93,9.02450183]
[1766045394211,2.44370563,122.96,122.93,8.33450183]
[1766045394403,3.13370563,122.94,122.92,0.2]
[1766045394808,2.44370563,122.93,122.91,0.89]
[1766045395000,3.13370563,122.93,122.91,0.89]
[1766045395621,4.51049326,122.93,122.91,0.89]
[1766045398418,3.82049326,122.93,122.91,0.89]
[1766045401019,0.69,122.94,122.92,0.69]
[1766045401603,18.57027465,122.97,122.92,0.69]
[1766045401811,0.69,122.93,122.91,0.89]
[1766045402315,4.51049326,122.92,122.9,0.89]
[1766045402506,4.51049326,122.92,122.9,0.2]
[1766045402714,0.69,122.92,122.9,0.2]
[1766045402891,0.69,122.92,122.9,8.33663803]
[1766045402892,4.51049326,122.92,122.9,8.33663803]
[1766045404321,4.51049326,122.92,122.9,0.2]
[1766045404829,4.51049326,122.93,122.9,9.02666759]
[1766045405334,4.51049326,122.92,122.9,0.2]
[1766045407029,3.82049326,122.91,122.89,0.2]
[1766045407213,3.82049326,122.9,122.89,0.2]
[1766045407404,4.51049326,122.91,122.89,0.89]
[1766045407608,4.51049326,122.91,122.89,0.2]
[1766045409420,4.51049326,122.91,122.89,0.89]
[1766045409737,0.69,122.91,122.89,0.89]
[1766045409916,3.82049326,122.91,122.89,0.89]
[1766045410715,4.51049326,122.9,122.89,0.2]
[1766045411131,4.51049326,122.9,122.87,9.02853941]
[1766045411332,4.51049326,122.9,122.87,0.89]
[1766045411915,4.54049326,122.89,122.87,0.2]
[1766045412136,0.72,122.87,122.84,8.92]
[1766045412434,3.82049326,122.85,122.83,0.66]
[1766045413242,4.54049326,122.85,122.82,9.00163385]
[1766045414549,4.54049326,122.85,122.82,0.86]
[1766045414844,3.82049326,122.84,122.82,0.86]
[1766045416041,4.54049326,122.84,122.82,0.2]
[1766045416342,4.54049326,122.84,122.82,9.00197914]
[1766045417537,4.54049326,122.84,122.82,0.2]
[1766045417950,4.54049326,122.84,122.82,0.86]
[1766045418245,0.72,122.84,122.82,9.00152691]
[1766045420631,8.92,122.86,122.82,9.00152691]
[1766045420944,4.54049326,122.85,122.82,9.00152691]
[1766045421248,0.72,122.85,122.82,8.34152691]
[1766045421450,4.54049326,122.85,122.82,9.00152691]
[1766045422061,0.72,122.84,122.82,9.00152691]
[1766045422222,4.54049326,122.85,122.82,9.00152691]
[1766045424038,4.54049326,122.85,122.82,8.34152691]
[1766045424241,4.54049326,122.85,122.83,0.66]
[1766045424549,4.54049326,122.85,122.82,9.00152691]
[1766045424735,4.54049326,122.85,122.83,0.66]
[1766045425240,4.54049326,122.85,122.82,9.00152691]
[1766045426257,0.72,122.84,122.82,9.00152691]
[1766045427953,3.82049326,122.85,122.82,9.00152691]
[1766045428152,4.54049326,122.85,122.82,9.00152691]
[1766045428352,4.54049326,122.85,122.83,0.66]
[1766045428851,4.54049326,122.85,122.82,9.00152691]
[1766045430239,4.54049326,122.85,122.83,0.66]
[1766045430640,3.82049326,122.85,122.82,9.00152691]
[1766045430966,3.82049326,122.83,122.8,9.46994492]
[1766045431136,12.74049326,122.86,122.83,0.66]
[1766045431453,8.92,122.86,122.83,0.66]
[1766045431657,9.64,122.86,122.83,0.66]
[1766045431963,0.72,122.87,122.84,0.66]
[1766045432259,4.54049326,122.87,122.84,0.66]
[1766045432661,0.72,122.86,122.84,0.66]
[1766045433542,0.72,122.84,122.81,0.66]
[1766045433745,4.54049326,122.83,122.8,8.80994492]
[1766045433947,4.54049326,122.83,122.81,25.13281478]
[1766045435070,4.54049326,122.83,122.81,33.27543436]
[1766045435760,3.82049326,122.83,122.81,33.27543436]
[1766045435961,4.54049326,122.84,122.81,33.27543436]
[1766045437676,0.72,122.83,122.81,33.27543436]
[1766045438867,3.82049326,122.84,122.81,33.27543436]
[1766045439067,4.54049326,122.84,122.81,33.27543436]
[1766045441567,0.72,122.82,122.81,24.47281478]
[1766045441772,4.54049326,122.82,122.8,0.66]
[1766045442469,3.82049326,122.81,122.78,0.2]
[1766045442666,4.49049326,122.79,122.78,0.2]
[1766045442842,4.49049326,122.79,122.77,0.88]
[1766045443861,0.67,122.79,122.77,0.88]
[1766045444285,0.67,122.79,122.77,0.2]
[1766045444286,4.49049326,122.79,122.77,0.2]
[1766045445282,0.67,122.78,122.77,0.2]
[1766045445462,4.49049326,122.78,122.77,0.2]
[1766045445667,0.67,122.78,122.77,0.2]
[1766045446986,12.74049326,122.79,122.77,0.2]
[1766045447190,13.41049326,122.79,122.77,0.88]
[1766045447387,12.76049326,122.8,122.78,0.68]
[1766045447685,12.76049326,122.8,122.77,9.02530172]
[1766045447891,0.67,122.79,122.77,9.02530172]
[1766045448670,0.67,122.79,122.77,27.60523916]
[1766045449089,0.67,122.79,122.77,26.92523916]
[1766045449287,8.94,122.8,122.78,0.68]
[1766045449487,9.61,122.8,122.78,0.68]
[1766045449787,13.43049326,122.8,122.78,0.68]
[1766045449987,13.43049326,122.8,122.77,27.60523916]
[1766045451696,8.94,122.8,122.77,26.92523916]
[1766045451869,0.67,122.79,122.77,26.92523916]
[1766045452494,0.67,122.79,122.77,27.60523916]
[1766045452874,13.438404,122.8,122.77,27.60523916]
[1766045453395,8.94,122.8,122.78,0.68]
[1766045454164,8.94,122.8,122.78,11.11767296]
[1766045454894,4.498404,122.81,122.78,11.11767296]
[1766045455098,13.438404,122.81,122.78,11.11767296]
[1766045455572,12.06005906,122.81,122.78,0.68]
[1766045455895,12.06005906,122.81,122.78,8.82455558]
[1766045456497,12.06005906,122.81,122.78,20.88461464]
[1766045457996,12.06005906,122.81,122.78,8.82455558]
[1766045458698,0.67,122.8,122.77,9.0251446]
[1766045458867,3.12005906,122.8,122.77,21.08520366]
[1766045459193,2.45005906,122.8,122.78,0.68]
[1766045459795,12.06005906,122.81,122.78,0.68]
[1766045460188,12.06005906,122.81,122.78,12.74005906]
[1766045461792,12.06005906,122.81,122.78,0.68]
[1766045463978,2.45005906,122.8,122.77,12.26005906]
[1766045464184,3.12005906,122.8,122.77,12.94005906]
[1766045464383,0.67,122.8,122.78,0.68]
[1766045465095,12.06005906,122.81,122.78,0.68]
[1766045465873,8.94,122.81,122.79,0.68]
[1766045466198,12.06005906,122.81,122.78,12.06005906]
[1766045466383,12.06005906,122.81,122.78,12.74005906]
[1766045466693,11.39005906,122.81,122.78,12.74005906]
[1766045466900,0.67,122.8,122.78,0.68]
[1766045467194,3.12005906,122.79,122.76,8.82566523]
[1766045467702,2.45005906,122.77,122.75,0.2]
[1766045467995,3.12005906,122.77,122.75,0.2]
[1766045468224,3.12005906,122.77,122.75,0.88]
[1766045468379,2.45005906,122.77,122.75,0.88]
[1766045469308,2.45005906,122.77,122.76,0.68]
[1766045469984,2.45005906,122.77,122.75,0.88]
[1766045471010,2.45005906,122.77,122.75,9.02659239]
[1766045471305,12.06005906,122.78,122.76,0.68]
[1766045472108,12.06005906,122.78,122.75,0.86]
[1766045475507,12.06005906,122.78,122.75,9.00659976]
[1766045477306,3.17005906,122.77,122.75,0.86]
[1766045478100,3.17005906,122.77,122.75,9.8]
[1766045479099,3.17005906,122.77,122.75,17.94660656]
[1766045479505,0.72,122.77,122.75,17.94660656]
[1766045479694,12.11005906,122.78,122.75,17.94660656]
[1766045479889,0.72,122.77,122.75,17.94660656]
[1766045482417,3.17005906,122.77,122.75,0.2]
[1766045482716,3.17005906,122.77,122.75,0.92]
[1766045483412,3.17005906,122.77,122.75,9.86]
[1766045485513,2.45005906,122.77,122.74,8.14710585]
[1766045485701,2.45005906,122.77,122.74,8.86710585]
[1766045485900,2.45005906,122.77,122.73,20.56872209]
[1766045485901,2.45005906,122.75,122.73,0.2]
[1766045486101,2.45005906,122.74,122.72,0.2]
[1766045491327,2.45005906,122.74,122.72,0.92]
[1766045492218,2.45005906,122.74,122.73,0.72]
[1766045492421,11.39005906,122.75,122.72,0.2]
[1766045492602,11.39005906,122.75,122.72,0.92]
[1766045493722,2.45005906,122.74,122.72,0.92]
[1766045494613,2.45005906,122.74,122.72,0.2]
[1766045494813,2.45005906,122.74,122.72,0.92]
[1766045496227,2.45005906,122.74,122.72,0.2]
[1766045497126,2.45005906,122.73,122.71,0.2]
[1766045497330,2.45005906,122.72,122.7,0.72]
[1766045498016,2.45005906,122.73,122.7,0.72]
[1766045498806,8.14750536,122.74,122.7,0.72]
[1766045499019,2.45005906,122.73,122.7,0.72]
[1766045499707,8.14750536,122.74,122.7,0.72]
[1766045499907,2.45005906,122.73,122.71,0.72]
[1766045502233,17.08694894,122.75,122.71,0.72]
[1766045502531,18.58385522,122.76,122.72,0.69]
[1766045502709,2.45005906,122.74,122.72,0.69]
[1766045502908,8.94,122.75,122.71,8.83915275]
[1766045503110,8.94,122.75,122.71,0.69]
[1766045503111,2.45005906,122.73,122.71,0.69]
[1766045503311,2.45005906,122.72,122.69,9.04034727]
[1766045503719,2.45005906,122.71,122.69,0.2]
[1766045504635,2.45005906,122.7,122.68,0.2]
[1766045505333,2.45005906,122.69,122.66,8.15229007]
[1766045505537,2.45005906,122.69,122.67,0.69]
[1766045505838,8.14940318,122.71,122.67,0.69]
[1766045505839,2.45005906,122.7,122.67,0.69]
[1766045506735,2.45005906,122.68,122.65,9.63]
[1766045506937,2.45005906,122.66,122.64,0.2]
[1766045508234,2.45005906,122.66,122.64,0.89]
[1766045508815,2.45005906,122.66,122.64,0.2]
[1766045509016,2.45005906,122.67,122.65,0.69]
[1766045509217,2.45005906,122.68,122.65,0.69]
[1766045509424,2.45005906,122.67,122.65,0.69]
[1766045509830,11.39005906,122.67,122.65,0.69]
[1766045510838,11.39005906,122.67,122.64,0.89]
[1766045511036,2.45005906,122.66,122.64,0.89]
[1766045512543,11.39005906,122.67,122.64,0.89]
[1766045515450,12.77665412,122.67,122.64,0.89]
[1766045516047,22.85034355,122.7,122.65,0.69]
[1766045516255,12.77665412,122.68,122.65,0.69]
[1766045517651,3.83665412,122.67,122.65,0.69]
[1766045519552,3.83632833,122.67,122.65,0.69]
[1766045523449,3.83632833,122.67,122.64,8.35356934]
[1766045523754,3.83632833,122.67,122.64,0.89]
[1766045523951,3.83632833,122.66,122.64,0.89]
[1766045524741,3.83632833,122.66,122.64,0.2]
[1766045525259,3.83632833,122.67,122.64,0.89]
[1766045525645,3.83632833,122.66,122.64,0.89]
[1766045527740,3.83632833,122.66,122.64,0.2]
[1766045527960,3.83632833,122.65,122.64,0.2]
[1766045528860,3.83632833,122.66,122.64,0.2]
[1766045529691,3.83632833,122.66,122.64,0.89]
[1766045531469,8.94,122.67,122.65,0.69]
[1766045531771,12.77632833,122.67,122.64,0.89]
[1766045532267,3.83632833,122.66,122.64,0.89]
[1766045533371,3.83632833,122.66,122.64,0.2]
[1766045534457,3.83632833,122.66,122.64,0.92]
[1766045535278,8.15103905,122.69,122.64,8.35390043]
[1766045535487,3.83632833,122.66,122.64,9.07390043]
[1766045536283,12.77632833,122.68,122.64,9.07390043]
[1766045537788,12.41249167,122.7,122.65,0.72]
[1766045537964,8.94,122.68,122.65,0.72]
[1766045538862,8.94,122.68,122.66,0.72]
[1766045539493,12.77632833,122.68,122.66,0.72]
[1766045539721,3.83632833,122.67,122.64,0.2]
[1766045539861,3.83632833,122.67,122.64,0.92]
[1766045540572,3.83632833,122.66,122.64,0.2]
[1766045540771,3.83632833,122.65,122.64,0.2]
[1766045542197,12.77632833,122.65,122.64,0.2]
[1766045543297,8.94,122.65,122.64,0.2]
[1766045547303,12.77632833,122.65,122.64,0.2]
[1766045548113,12.77632833,122.65,122.61,8.87584178]
[1766045548281,12.77632833,122.65,122.62,0.72]
[1766045548992,12.77632833,122.65,122.62,8.15525545]
[1766045549199,12.77632833,122.65,122.63,0.72]
[1766045550692,8.94,122.66,122.64,0.72]
[1766045551000,8.15077945,122.69,122.64,0.72]
[1766045551196,8.94,122.68,122.64,0.72]
[1766045552910,12.77632833,122.68,122.64,0.72]
[1766045554101,12.77632833,122.68,122.63,11.99078925]
[1766045554102,3.83632833,122.66,122.63,0.72]
[1766045554305,3.83632833,122.66,122.62,8.15494739]
[1766045554502,3.83632833,122.66,122.63,0.72]
[1766045556011,3.83632833,122.67,122.63,0.72]
[1766045556519,3.83632833,122.67,122.64,0.72]
[1766045556981,3.83632833,122.67,122.63,8.15456371]
[1766045557121,3.83632833,122.67,122.63,8.87456371]
[1766045559206,20.92803353,122.68,122.64,0.72]
[1766045562821,11.98767419,122.68,122.64,0.72]
[1766045563001,8.94,122.67,122.64,8.87381277]
[1766045565321,8.94,122.67,122.64,8.15381277]
[1766045565624,8.94,122.67,122.65,0.65]
[1766045567532,3.83632833,122.69,122.66,0.65]
[1766045567829,8.94,122.68,122.65,8.80318026]
[1766045568435,8.94,122.68,122.65,8.15318026]
[1766045568720,8.94,122.68,122.65,8.80318026]
[1766045570724,12.77632833,122.68,122.65,0.65]
[1766045571019,20.92762992,122.68,122.65,0.65]
[1766045571933,12.77632833,122.68,122.65,0.65]
[1766045574324,20.92782928,122.68,122.65,0.65]
[1766045575827,20.92782928,122.68,122.64,0.65]
[1766045577431,19.54690527,122.68,122.64,0.65]
[1766045587444,19.54684909,122.68,122.64,0.65]
[1766045589443,17.09150095,122.68,122.64,0.65]
[1766045590643,19.54684909,122.68,122.64,0.65]
[1766045592341,10.60684909,122.68,122.64,0.65]
[1766045592549,8.94,122.67,122.64,0.65]
[1766045593322,8.94,122.67,122.64,8.80393154]
[1766045593954,8.94,122.67,122.64,8.15393154]
[1766045594244,24.50880274,122.71,122.64,8.15393154]
[1766045594245,2.45534814,122.71,122.65,2.45534814]
[1766045594434,8.94,122.7,122.66,0.68]
[1766045594745,8.94,122.7,122.67,0.68]
[1766045594946,8.94,122.7,122.68,0.68]
[1766045595146,8.94,122.7,122.67,8.15164028]
[1766045595340,8.94,122.7,122.67,8.83164028]
[1766045597144,2.45534814,122.71,122.67,8.83164028]
[1766045597450,8.94,122.7,122.67,8.83164028]
[1766045597832,8.94,122.72,122.69,0.68]
[1766045598432,11.39534814,122.72,122.69,0.68]
[1766045598629,8.94,122.72,122.69,0.68]
[1766045599347,8.94,122.72,122.7,0.68]
[1766045599841,8.94,122.77,122.71,0.68]
[1766045600048,11.39534814,122.76,122.72,0.68]
[1766045600637,2.45534814,122.79,122.75,0.68]
[1766045600960,10.59934531,122.79,122.75,0.68]
[1766045601121,8.94,122.8,122.75,0.68]
[1766045601122,11.39534814,122.8,122.75,0.68]
[1766045601531,11.39534814,122.8,122.76,0.68]
[1766045601747,8.94,122.8,122.76,8.14571429]
[1766045601938,2.45534814,122.77,122.71,0.68]
[1766045602242,2.45534814,122.77,122.74,0.68]
[1766045602751,2.45534814,122.78,122.75,0.68]
[1766045603251,17.08341563,122.8,122.76,0.68]
[1766045603252,2.45534814,122.79,122.76,0.68]
[1766045605053,2.45534814,122.78,122.74,0.68]
[1766045606050,2.45534814,122.77,122.74,0.68]
[1766045607146,2.45534814,122.78,122.74,0.68]
[1766045608253,2.45534814,122.79,122.75,0.68]
[1766045608448,19.53880531,122.8,122.75,0.68]
[1766045609052,0.1,122.81,122.78,0.68]
[1766045609235,2.45534814,122.8,122.77,0.68]
[1766045609959,3.22534814,122.81,122.77,8.82530425]
[1766045610144,2.55534814,122.81,122.77,8.82530425]
[1766045610458,3.22534814,122.81,122.77,8.82530425]
[1766045611063,3.22534814,122.81,122.77,0.68]
[1766045611064,0.77,122.81,122.77,0.68]
[1766045611249,0.67,122.8,122.77,0.68]
[1766045611455,0.67,122.8,122.77,8.82530432]
[1766045614040,0.67,122.79,122.76,11.28257694]
[1766045614235,0.67,122.78,122.76,10.60257694]
[1766045614640,2.45534814,122.79,122.76,0.68]
[1766045614851,3.12534814,122.79,122.76,0.68]
[1766045615067,0.67,122.79,122.76,0.68]
[1766045615357,3.12534814,122.79,122.76,0.68]
[1766045615860,2.45534814,122.78,122.76,0.68]
[1766045616762,3.12534814,122.77,122.74,8.82730324]
[1766045616957,3.12534814,122.77,122.75,0.68]
[1766045616958,2.45534814,122.77,122.75,0.68]
[1766045617751,2.45534814,122.78,122.75,0.68]
[1766045618559,3.12534814,122.79,122.75,0.68]
[1766045618769,3.12534814,122.79,122.76,8.14597588]
[1766045619062,3.12534814,122.79,122.76,8.82597588]
[1766045619266,2.45534814,122.78,122.76,8.82597588]
[1766045620069,0.67,122.79,122.76,8.82597588]
[1766045620270,2.45534814,122.79,122.77,8.14519709]
[1766045620434,2.45534814,122.8,122.78,0.68]
[1766045620761,3.22534814,122.81,122.78,0.68]
[1766045620958,0.1,122.81,122.78,0.68]
[1766045621358,0.1,122.81,122.78,3.94384072]
[1766045621665,0.1,122.81,122.79,0.68]
[1766045623160,0.1,122.81,122.8,0.66]
[1766045625168,0.1,122.81,122.8,8.80332247]
[1766045625468,0.1,122.81,122.8,0.66]
[1766045626666,0.1,122.81,122.8,8.80332247]
[1766045626869,2.55534814,122.83,122.81,0.66]
[1766045627048,2.55534814,122.83,122.8,8.80332247]
[1766045627049,3.26534814,122.83,122.8,8.80332247]
[1766045627550,0.1,122.83,122.81,0.66]
[1766045627868,3.16534814,122.86,122.81,0.66]
[1766045628070,3.16534814,122.86,122.82,0.66]
[1766045628365,2.45534814,122.86,122.82,0.66]
[1766045628570,0.71,122.85,122.82,0.66]
[1766045628867,0.71,122.85,122.82,8.80169571]
[1766045631570,3.16534814,122.85,122.82,8.80169571]
[1766045631756,2.45534814,122.83,122.78,29.17104722]